fUST/lending_fUST_20260416
["ID","MTS","AMOUNT","RATE_DAILY","PERIOD"]
[420613060,1776340238776,-500.0,8.321e-05,2]
[420613061,1776340238786,-500.0,8.321e-05,2]
[420613062,1776340238795,-500.0,8.321e-05,2]
[420613063,1776340238804,-500.0,8.321e-05,2]
[420613064,1776340238813,-500.0,8.321e-05,2]
[420613065,1776340238822,-500.0,8.321e-05,2]
[420613066,1776340238832,-500.0,8.321e-05,2]
[420613067,1776340238841,-500.0,8.321e-05,2]
[420613068,1776340238852,-221.80902096,8.322e-05,2]
[420613069,1776340238863,-336.45922526,8.322e-05,2]
[420613070,1776340238872,-40183.40206841,8.323e-05,2]
[420613071,1776340238885,-5675.334293,8.323e-05,2]
[420613085,1776340243312,-159.49411935,8.322e-05,2]
[420613086,1776340243321,-1807.90072513,8.323e-05,2]
[420613087,1776340243417,-1790.70963771,8.323e-05,2]
[420613096,1776340246347,-3458.64472263,8.323e-05,2]
[420613121,1776340862607,-1847.58846071,6.942e-05,2]
[420613405,1776341446100,-920.32817028,5.894e-05,2]
[420613407,1776341446155,-4079.67182972,5.894e-05,2]
[420613408,1776341446164,-1659.20314104,5.954e-05,2]
[420613409,1776341446174,-506.0,5.954e-05,2]
[420613410,1776341446183,-199.28350888,6.014e-05,2]
[420613411,1776341446192,-242.37513853,6.074e-05,2]
[420613413,1776341446795,-957.62486147,6.074e-05,2]
[420613414,1776341446805,-3975.528943,6.075e-05,2]
[420613415,1776341446815,-300.0,6.194e-05,2]
[420613416,1776341446827,-300.0,6.194e-05,2]
[420613417,1776341446837,-300.0,6.194e-05,2]
[420613418,1776341446846,-300.0,6.194e-05,2]
[420613419,1776341446856,-300.0,6.194e-05,2]
[420613420,1776341446865,-300.0,6.194e-05,2]
[420613421,1776341446875,-300.0,6.194e-05,2]
[420613422,1776341446884,-300.0,6.194e-05,2]
[420613423,1776341446893,-300.0,6.194e-05,2]
[420613425,1776341446903,-300.0,6.194e-05,2]
[420613426,1776341446912,-300.0,6.194e-05,2]
[420613427,1776341446922,-300.0,6.194e-05,2]
[420613428,1776341446931,-300.0,6.194e-05,2]
[420613429,1776341446940,-300.0,6.194e-05,2]
[420613430,1776341446950,-300.0,6.194e-05,2]
[420613431,1776341446960,-256.2513307,6.257e-05,2]
[420613432,1776341446969,-600.0,6.317e-05,2]
[420613433,1776341446978,-300.0,6.438e-05,2]
[420613434,1776341446987,-300.0,6.438e-05,2]
[420613435,1776341446997,-300.0,6.438e-05,2]
[420613436,1776341447006,-300.0,6.438e-05,2]
[420613437,1776341447015,-300.0,6.439e-05,2]
[420613438,1776341447025,-1200.0,6.439e-05,2]
[420613439,1776341447035,-1680.0,6.682e-05,2]
[420613440,1776341447044,-3498.86839808,6.841e-05,2]
[420613441,1776341447053,-720.0,6.949e-05,2]
[420613442,1776341447063,-420.0,7.082e-05,2]
[420613443,1776341447073,-420.0,7.082e-05,2]
[420613444,1776341447082,-420.0,7.082e-05,2]
[420613445,1776341447092,-420.0,7.082e-05,2]
[420613446,1776341447101,-359.0,7.083e-05,2]
[420613447,1776341447111,-1200.0,7.083e-05,2]
[420613448,1776341447120,-500.0,7.155e-05,2]
[420613449,1776341447130,-500.0,7.155e-05,2]
[420613450,1776341447139,-500.0,7.155e-05,2]
[420613451,1776341447149,-2387.359247,7.204e-05,2]
[420613453,1776341447158,-2563.7735409,7.3e-05,2]
[420613457,1776341533058,3088.78,3.002e-05,2]
[420613613,1776342639016,-199.11740128,5.303e-05,2]
[420613614,1776342639025,-5000.0,5.357e-05,2]
[420613615,1776342639035,-263.08996522,5.522e-05,2]
[420613616,1776342639044,-300.0,5.578e-05,2]
[420613617,1776342639053,-1200.0,5.628e-05,2]
[420613618,1776342639063,-698.0,5.629e-05,2]
[420613619,1776342639072,-180.0,5.629e-05,2]
[420613620,1776342639083,-300.0,5.629e-05,2]
[420613621,1776342639092,-300.0,5.629e-05,2]
[420613622,1776342639103,-300.0,5.631e-05,2]
[420613623,1776342639112,-300.0,5.631e-05,2]
[420613624,1776342639122,-300.0,5.631e-05,2]
[420613625,1776342639131,-300.0,5.631e-05,2]
[420613626,1776342639141,-300.0,5.631e-05,2]
[420613627,1776342639150,-300.0,5.631e-05,2]
[420613628,1776342639160,-300.0,5.631e-05,2]
[420613629,1776342639169,-300.0,5.631e-05,2]
[420613630,1776342639179,-300.0,5.631e-05,2]
[420613631,1776342639188,-300.0,5.631e-05,2]
[420613632,1776342639197,-300.0,5.631e-05,2]
[420613633,1776342639207,-300.0,5.631e-05,2]
[420613634,1776342639217,-300.0,5.631e-05,2]
[420613635,1776342639421,-300.0,5.631e-05,2]
[420613636,1776342639431,-300.0,5.631e-05,2]
[420613637,1776342639440,-600.0,5.743e-05,2]
[420613638,1776342639450,-1680.0,6.191e-05,2]
[420613639,1776342639460,-420.0,6.192e-05,2]
[420613640,1776342639470,-359.0,6.192e-05,2]
[420613641,1776342639479,-152.0,6.197e-05,2]
[420613642,1776342639488,-720.0,6.317e-05,2]
[420613643,1776342639498,-292.782,6.746e-05,2]
[420613644,1776342639508,-288.0,6.81e-05,2]
[420613645,1776342639517,-587.0,6.811e-05,2]
[420613646,1776342639526,-864.0,6.949e-05,2]
[420613647,1776342639536,-152.0,7e-05,2]
[420613648,1776342639545,-30831.60733407,7e-05,2]
[420613649,1776342639555,-250.0,7.15e-05,2]
[420613650,1776342639565,-6268.2132573,7.3e-05,2]
[420613651,1776342639575,-823.0,7.492e-05,2]
[420613652,1776342639584,-2387.359247,7.507e-05,2]
[420613653,1776342639593,-310.44615896,7.522e-05,2]
[420613654,1776342639603,-1000.0,7.643e-05,2]
[420613655,1776342639612,-2387.359247,7.81e-05,2]
[420613656,1776342639621,-151.0,7.862e-05,2]
[420613657,1776342639631,-463.48750567,8e-05,2]
[420613658,1776342639640,-1129.96563725,8e-05,2]
[420613659,1776342639650,-1476.8026438,8e-05,2]
[420613660,1776342639660,-1796.44376882,8e-05,2]
[420613661,1776342639671,-1922.30029079,8e-05,2]
[420613662,1776342639680,-2387.359247,8.114e-05,2]
[420613663,1776342639689,-500.0,8.219e-05,2]
[420613664,1776342639698,-500.0,8.219e-05,2]
[420613665,1776342639708,-509.25893264,8.219e-05,2]
[420613666,1776342639717,-1850.59,8.219e-05,2]
[420613667,1776342639727,-1700.14,8.219e-05,2]
[420613668,1776342639736,-1979.79,8.219e-05,2]
[420613669,1776342639746,-500.0,8.219e-05,2]
[420613670,1776342639755,-500.0,8.219e-05,2]
[420613671,1776342639766,-785.1512,8.219e-05,2]
[420613672,1776342639775,-500.0,8.219e-05,2]
[420613673,1776342639785,-500.0,8.219e-05,2]
[420613674,1776342639794,-415.36457788,8.219e-05,2]
[420613675,1776342639804,-500.0,8.219e-05,2]
[420613676,1776342639813,-2404.93,8.219e-05,2]
[420613677,1776342639823,-2037.98,8.219e-05,2]
[420613678,1776342639832,-500.0,8.219e-05,2]
[420613679,1776342639841,-500.0,8.219e-05,2]
[420613680,1776342639850,-214.20843898,8.219e-05,2]
[420613681,1776342639860,-500.0,8.219e-05,2]
[420613682,1776342639870,-500.0,8.219e-05,2]
[420613683,1776342639879,-500.0,8.219e-05,2]
[420613684,1776342639889,-500.0,8.219e-05,2]
[420613685,1776342639899,-500.0,8.219e-05,2]
[420613686,1776342639908,-685.05,8.219e-05,2]
[420613687,1776342639918,-589.57,8.219e-05,2]
[420613688,1776342639927,-500.0,8.219e-05,2]
[420613689,1776342639936,-500.0,8.219e-05,2]
[420613690,1776342639945,-500.0,8.219e-05,2]
[420613691,1776342639955,-449.30803835,8.219e-05,2]
[420613692,1776342639964,-500.0,8.219e-05,2]
[420613693,1776342639975,-500.0,8.219e-05,2]
[420613694,1776342639984,-946.9,8.219e-05,2]
[420613695,1776342639993,-500.0,8.219e-05,2]
[420613696,1776342640003,-258.97925935,8.219e-05,2]
[420613697,1776342640012,-500.0,8.219e-05,2]
[420613698,1776342640022,-1174.22,8.219e-05,2]
[420613699,1776342640031,-500.0,8.219e-05,2]
[420613700,1776342640041,-500.0,8.219e-05,2]
[420613701,1776342640050,-500.0,8.219e-05,2]
[420613702,1776342640059,-535.72871599,8.219e-05,2]
[420613703,1776342640068,-500.0,8.219e-05,2]
[420613704,1776342640077,-1014.94,8.219e-05,2]
[420613705,1776342640086,-500.0,8.219e-05,2]
[420613707,1776342640096,-694.73,8.219e-05,2]
[420613709,1776342640105,-500.0,8.219e-05,2]
[420613710,1776342640115,-500.0,8.219e-05,2]
[420613711,1776342640124,-500.0,8.219e-05,2]
[420613712,1776342640134,-465.37985238,8.219e-05,2]
[420613713,1776342640143,-614.54,8.219e-05,2]
[420613714,1776342640152,-500.0,8.219e-05,2]
[420613715,1776342640162,-500.0,8.219e-05,2]
[420613716,1776342640172,-500.0,8.219e-05,2]
[420613717,1776342640182,-500.0,8.219e-05,2]
[420613718,1776342640192,-175.17131985,8.219e-05,2]
[420613719,1776342640201,-500.0,8.219e-05,2]
[420613720,1776342640211,-486.63860343,8.219e-05,2]
[420613721,1776342640221,-500.0,8.219e-05,2]
[420613722,1776342640231,-500.0,8.219e-05,2]
[420613723,1776342640242,-500.0,8.219e-05,2]
[420613724,1776342640252,-500.0,8.219e-05,2]
[420613725,1776342640262,-500.0,8.219e-05,2]
[420613726,1776342640271,-500.0,8.219e-05,2]
[420613727,1776342640281,-500.0,8.219e-05,2]
[420613728,1776342640291,-532.2202311,8.219e-05,2]
[420613729,1776342640300,-500.0,8.219e-05,2]
[420613730,1776342640311,-500.0,8.219e-05,2]
[420613731,1776342640320,-578.53532198,8.219e-05,2]
[420613732,1776342640330,-500.0,8.219e-05,2]
[420613733,1776342640339,-500.0,8.219e-05,2]
[420613734,1776342640348,-222.38134753,8.219e-05,2]
[420613754,1776342641383,-277.61865247,8.219e-05,2]
[420613755,1776342641393,-473.46784753,8.219e-05,2]
[420613756,1776342641404,-26.53215247,8.219e-05,2]
[420613757,1776342641414,-500.0,8.219e-05,2]
[420613758,1776342641424,-500.0,8.219e-05,2]
[420613759,1776342641434,-500.0,8.219e-05,2]
[420613760,1776342641443,-500.0,8.219e-05,2]
[420613761,1776342641452,-263.95808653,8.219e-05,2]
[420613762,1776342646871,-4196.85964223,8.137e-05,2]
[420613763,1776342646928,-803.14035777,8.137e-05,2]
[420613764,1776342646938,-133.75033464,8.219e-05,2]
[420613765,1776342646948,-329.09328409,8.219e-05,2]
[420613766,1776342646957,-177.61755835,8.219e-05,2]
[420613767,1776342646966,-503.40051243,8.219e-05,2]
[420613768,1776342646976,-171.5136572,8.219e-05,2]
[420613769,1776342646986,-556.13,8.219e-05,2]
[420613770,1776342646996,-343.01222253,8.219e-05,2]
[420613771,1776342647005,-207.02377612,8.219e-05,2]
[420613772,1776342647014,-293.69504982,8.219e-05,2]
[420613773,1776342647023,-500.0,8.219e-05,2]
[420613774,1776342647032,-837.06804122,8.219e-05,2]
[420613778,1776342662289,-400.87286306,7.5e-05,2]
[420613911,1776343848855,-5000.0,7.435e-05,2]
[420613913,1776343848865,-623.01466026,7.511e-05,2]
[420613915,1776343848875,-526.0,7.511e-05,2]
[420613917,1776343848884,-883.699905,7.721e-05,2]
[420613919,1776343848893,-259.85895041,7.754e-05,2]
[420613921,1776343848903,-206.52662997,7.906e-05,2]
[420613923,1776343848914,-234.226,7.957e-05,2]
[420613925,1776343848923,-500.0,8.017e-05,2]
[420613927,1776343848932,-500.0,8.017e-05,2]
[420613929,1776343848942,-500.0,8.017e-05,2]
[420613931,1776343848951,-500.0,8.017e-05,2]
[420613933,1776343848961,-500.0,8.017e-05,2]
[420613935,1776343848970,-500.0,8.017e-05,2]
[420613937,1776343848979,-500.0,8.017e-05,2]
[420613939,1776343848989,-411.06445191,8.017e-05,2]
[420613982,1776344462144,-1923.0,7.113e-05,2]
[420614009,1776345032311,-368.35170898,6.899e-05,2]
[420614238,1776346232547,-172.92572073,6.022e-05,2]
[420614240,1776346232557,-269.35959603,6.084e-05,2]
[420614242,1776346232566,-223.4694928,6.145e-05,2]
[420614260,1776346239659,-101.5305072,6.145e-05,2]
[420614261,1776346239668,-903.17702059,6.146e-05,2]
[420614276,1776346241080,-2419.67868723,6.146e-05,2]
[420614307,1776346244638,-557.18407237,6.146e-05,2]
[420614308,1776346244694,-1119.96021981,6.146e-05,2]
[420614309,1776346244703,-508.0,6.146e-05,2]
[420614310,1776346244713,-200.0,6.691e-05,2]
[420614311,1776346244722,-209.72000733,6.728e-05,2]
[420614312,1776346244732,-736.416587,6.87e-05,2]
[420614313,1776346244741,-298.43384149,7.047e-05,2]
[420614314,1776346244751,-736.416587,7.16e-05,2]
[420614315,1776346244760,-2597.37903055,7.344e-05,2]
[420614316,1776346244769,-300.0,7.442e-05,2]
[420614317,1776346244778,-259.0,7.442e-05,2]
[420614318,1776346244787,-2302.80606936,7.444e-05,2]
[420614331,1776346246786,-3437.47458599,7.444e-05,2]
[420614332,1776346246795,-736.416587,7.449e-05,2]
[420614333,1776346246805,-250.0,7.456e-05,2]
[420614334,1776346246815,-300.34159584,7.5e-05,2]
[420614335,1776346246824,-300.0,7.507e-05,2]
[420614336,1776346246833,-300.0,7.507e-05,2]
[420614337,1776346246842,-300.0,7.507e-05,2]
[420614338,1776346246852,-300.0,7.507e-05,2]
[420614339,1776346246862,-300.0,7.507e-05,2]
[420614340,1776346246871,-300.0,7.507e-05,2]
[420614341,1776346246880,-300.0,7.507e-05,2]
[420614342,1776346246889,-300.0,7.507e-05,2]
[420614343,1776346246899,-300.0,7.507e-05,2]
[420614344,1776346246908,-300.0,7.507e-05,2]
[420614345,1776346246917,-300.0,7.507e-05,2]
[420614346,1776346246926,-300.0,7.507e-05,2]
[420614347,1776346246937,-300.0,7.507e-05,2]
[420614348,1776346246946,-300.0,7.507e-05,2]
[420614349,1776346246955,-300.0,7.507e-05,2]
[420614350,1776346246964,-6361.73041094,7.544e-05,2]
[420614351,1776346246974,-237.776,7.544e-05,2]
[420614352,1776346246984,-500.0,7.583e-05,2]
[420614353,1776346246994,-500.0,7.583e-05,2]
[420614354,1776346247003,-191.89427328,7.583e-05,2]
[420614355,1776346247012,-1831.54246711,7.61e-05,2]
[420614356,1776346247024,-7832.07131441,7.61e-05,2]
[420614357,1776346266164,-5000.0,7.534e-05,2]
[420614364,1776347431993,-300.0,5.76e-05,2]
[420614365,1776347432002,-278.10913902,5.76e-05,2]
[420614366,1776347432013,-224.89086098,5.76e-05,2]
[420614367,1776347432022,-383.35605924,5.761e-05,2]
[420614368,1776347432041,-250.5264,5.761e-05,2]
[420614457,1776347439095,-4366.11754076,5.761e-05,2]
[420614459,1776347439104,-151.0,5.819e-05,2]
[420614461,1776347439114,-1200.0,5.998e-05,2]
[420614462,1776347439123,-300.0,5.999e-05,2]
[420614463,1776347439133,-300.0,5.999e-05,2]
[420614464,1776347439142,-319.1921679,6e-05,2]
[420614465,1776347439152,-32183.64,6e-05,2]
[420614466,1776347439162,-151.0,6.221e-05,2]
[420614467,1776347439171,-151.0,6.285e-05,2]
[420614468,1776347439181,-509.81985126,6.318e-05,2]
[420614469,1776347439190,-572.52058489,6.318e-05,2]
[420614470,1776347439200,-500.0,6.318e-05,2]
[420614471,1776347439209,-500.0,6.318e-05,2]
[420614472,1776347439218,-509.81985126,6.318e-05,2]
[420614473,1776347439227,-500.0,6.318e-05,2]
[420614474,1776347439236,-500.0,6.318e-05,2]
[420614475,1776347439245,-500.0,6.318e-05,2]
[420614476,1776347439255,-500.0,6.318e-05,2]
[420614477,1776347439264,-509.81985126,6.318e-05,2]
[420614478,1776347439274,-500.0,6.318e-05,2]
[420614479,1776347439283,-500.0,6.318e-05,2]
[420614480,1776347439293,-509.81985126,6.318e-05,2]
[420614481,1776347439304,-500.0,6.318e-05,2]
[420614482,1776347439314,-509.81985126,6.318e-05,2]
[420614483,1776347439323,-500.0,6.318e-05,2]
[420614484,1776347439333,-500.0,6.318e-05,2]
[420614485,1776347439342,-500.0,6.318e-05,2]
[420614486,1776347439351,-500.0,6.318e-05,2]
[420614487,1776347439361,-509.81985126,6.318e-05,2]
[420614488,1776347439371,-500.0,6.318e-05,2]
[420614489,1776347439380,-466.17194887,6.318e-05,2]
[420614490,1776347439389,-509.81985126,6.318e-05,2]
[420614491,1776347439398,-500.0,6.318e-05,2]
[420614492,1776347439407,-500.0,6.318e-05,2]
[420614493,1776347439417,-500.0,6.318e-05,2]
[420614494,1776347439426,-500.0,6.318e-05,2]
[420614495,1776347439436,-509.81985126,6.318e-05,2]
[420614496,1776347439446,-500.0,6.318e-05,2]
[420614497,1776347439455,-509.81985126,6.318e-05,2]
[420614498,1776347439464,-500.0,6.318e-05,2]
[420614499,1776347439474,-500.0,6.318e-05,2]
[420614500,1776347439483,-500.0,6.318e-05,2]
[420614501,1776347439492,-509.81985126,6.318e-05,2]
[420614502,1776347439502,-500.0,6.318e-05,2]
[420614503,1776347439511,-500.0,6.318e-05,2]
[420614504,1776347439520,-509.81985126,6.318e-05,2]
[420614505,1776347439530,-573.45299761,6.318e-05,2]
[420614506,1776347439539,-500.0,6.318e-05,2]
[420614507,1776347439550,-509.81985126,6.318e-05,2]
[420614508,1776347439560,-500.0,6.318e-05,2]
[420614509,1776347439570,-500.0,6.318e-05,2]
[420614510,1776347439579,-509.81985126,6.318e-05,2]
[420614511,1776347439588,-500.0,6.318e-05,2]
[420614512,1776347439598,-500.0,6.318e-05,2]
[420614513,1776347439608,-500.0,6.318e-05,2]
[420614514,1776347439617,-509.81985126,6.318e-05,2]
[420614516,1776347439626,-500.0,6.318e-05,2]
[420614517,1776347439636,-500.0,6.318e-05,2]
[420614518,1776347439645,-509.81985126,6.318e-05,2]
[420614519,1776347439655,-500.0,6.318e-05,2]
[420614520,1776347439664,-500.0,6.318e-05,2]
[420614521,1776347439673,-509.81985126,6.318e-05,2]
[420614522,1776347439682,-500.0,6.318e-05,2]
[420614523,1776347439691,-500.0,6.318e-05,2]
[420614524,1776347439700,-509.81985126,6.318e-05,2]
[420614525,1776347439709,-500.0,6.318e-05,2]
[420614526,1776347439719,-500.0,6.318e-05,2]
[420614527,1776347439727,-509.81985126,6.318e-05,2]
[420614528,1776347439737,-500.0,6.318e-05,2]
[420614530,1776347439747,-500.0,6.318e-05,2]
[420614532,1776347439756,-509.81985126,6.318e-05,2]
[420614534,1776347439765,-509.81985126,6.318e-05,2]
[420614536,1776347439775,-500.0,6.318e-05,2]
[420614538,1776347439787,-500.0,6.318e-05,2]
[420614541,1776347439799,-500.0,6.318e-05,2]
[420614543,1776347439809,-500.0,6.318e-05,2]
[420614545,1776347439818,-509.81985126,6.318e-05,2]
[420614547,1776347439827,-153.47215794,6.318e-05,2]
[420614548,1776347439837,-509.81985126,6.318e-05,2]
[420614550,1776347439847,-509.81985126,6.318e-05,2]
[420614552,1776347439856,-500.0,6.318e-05,2]
[420614554,1776347439864,-509.81985126,6.318e-05,2]
[420614556,1776347439873,-509.81985126,6.318e-05,2]
[420614557,1776347439882,-509.81985126,6.318e-05,2]
[420614559,1776347439892,-509.81985126,6.318e-05,2]
[420614561,1776347439902,-509.81985126,6.318e-05,2]
[420614563,1776347439910,-509.81985126,6.318e-05,2]
[420614565,1776347439919,-509.81985126,6.318e-05,2]
[420614567,1776347439928,-509.81985126,6.318e-05,2]
[420614569,1776347439938,-509.81985126,6.318e-05,2]
[420614571,1776347439947,-509.81985126,6.318e-05,2]
[420614572,1776347439956,-509.81985126,6.318e-05,2]
[420614573,1776347439965,-509.81985126,6.318e-05,2]
[420614574,1776347439974,-509.81985126,6.318e-05,2]
[420614575,1776347439984,-509.81985126,6.318e-05,2]
[420614576,1776347439993,-509.81985126,6.318e-05,2]
[420614577,1776347440002,-509.81985126,6.318e-05,2]
[420614578,1776347440012,-509.81985126,6.318e-05,2]
[420614579,1776347440022,-509.81985126,6.318e-05,2]
[420614580,1776347440031,-509.81985126,6.318e-05,2]
[420614581,1776347440041,-509.81985126,6.318e-05,2]
[420614582,1776347440052,-509.81985126,6.318e-05,2]
[420614583,1776347440061,-509.81985126,6.318e-05,2]
[420614584,1776347440071,-509.81985126,6.318e-05,2]
[420614585,1776347440080,-509.81985126,6.318e-05,2]
[420614586,1776347440089,-509.81985126,6.318e-05,2]
[420614587,1776347440098,-509.81985126,6.318e-05,2]
[420614588,1776347440107,-509.81985126,6.318e-05,2]
[420614589,1776347440117,-509.81985126,6.318e-05,2]
[420614590,1776347440126,-509.81985126,6.318e-05,2]
[420614591,1776347440135,-509.81985126,6.318e-05,2]
[420614592,1776347440144,-509.81985126,6.318e-05,2]
[420614593,1776347440153,-509.81985126,6.318e-05,2]
[420614594,1776347440162,-300.0,6.319e-05,2]
[420614595,1776347440172,-528.00022271,6.376e-05,2]
[420614596,1776347440181,-500.0,6.376e-05,2]
[420614597,1776347440190,-500.0,6.376e-05,2]
[420614598,1776347440199,-500.0,6.376e-05,2]
[420614599,1776347440208,-500.0,6.376e-05,2]
[420614600,1776347440218,-500.0,6.376e-05,2]
[420614601,1776347440227,-500.0,6.376e-05,2]
[420614602,1776347440237,-500.0,6.376e-05,2]
[420614603,1776347440246,-500.0,6.376e-05,2]
[420614604,1776347440256,-500.0,6.376e-05,2]
[420614605,1776347440265,-337.95296911,6.376e-05,2]
[420614606,1776347440275,-209.616,6.378e-05,2]
[420614607,1776347440284,-300.0,6.38e-05,2]
[420614608,1776347440294,-300.0,6.38e-05,2]
[420614609,1776347440304,-300.0,6.38e-05,2]
[420614610,1776347440314,-300.0,6.38e-05,2]
[420614611,1776347440323,-300.0,6.38e-05,2]
[420614612,1776347440332,-300.0,6.38e-05,2]
[420614613,1776347440342,-300.0,6.38e-05,2]
[420614614,1776347440351,-300.0,6.38e-05,2]
[420614615,1776347440360,-300.0,6.38e-05,2]
[420614616,1776347440369,-300.0,6.38e-05,2]
[420614617,1776347440379,-300.0,6.38e-05,2]
[420614618,1776347440389,-300.0,6.38e-05,2]
[420614619,1776347440398,-300.0,6.38e-05,2]
[420614620,1776347440407,-300.0,6.38e-05,2]
[420614621,1776347440416,-300.0,6.38e-05,2]
[420614622,1776347440426,-500.0,6.38e-05,2]
[420614623,1776347440435,-508.40262219,6.38e-05,2]
[420614624,1776347440444,-504.26870507,6.38e-05,2]
[420614625,1776347440453,-500.0,6.38e-05,2]
[420614626,1776347440462,-500.0,6.38e-05,2]
[420614627,1776347440471,-265.7879844,6.461e-05,2]
[420614628,1776347440481,-600.0,6.507e-05,2]
[420614629,1776347440490,-420.0,6.599e-05,2]
[420614630,1776347440500,-382.33360244,6.928e-05,2]
[420614631,1776347440509,-1000.0,6.928e-05,2]
[420614632,1776347440518,-1000.0,6.928e-05,2]
[420614633,1776347440527,-2577.7603677,6.937e-05,2]
[420614634,1776347440537,-155.0,7.016e-05,2]
[420614636,1776347440547,-720.0,7.157e-05,2]
[420614637,1776347440556,-587.0,7.259e-05,2]
[420614638,1776347440565,-6485.9996443,7.315e-05,2]
[420614639,1776347440574,-738.9187692,7.315e-05,2]
[420614640,1776347440583,-738.9187692,7.315e-05,2]
[420614641,1776347440592,-863.4465089,7.476e-05,2]
[420614642,1776347440601,-1500.0,7.476e-05,2]
[420614643,1776347440610,-500.0,7.483e-05,2]
[420614644,1776347440619,-502.22319693,7.483e-05,2]
[420614645,1776347440637,-262.560586,7.5e-05,2]
[420614646,1776347440649,-262.560586,7.5e-05,2]
[420614647,1776347440659,-262.560586,7.5e-05,2]
[420614648,1776347440668,-262.560586,7.5e-05,2]
[420614649,1776347440678,-399.48865644,7.507e-05,2]
[420614650,1776347440688,-262.560586,7.509e-05,2]
[420614651,1776347440697,-262.560586,7.509e-05,2]
[420614652,1776347440707,-262.560586,7.509e-05,2]
[420614653,1776347440716,-262.560586,7.509e-05,2]
[420614654,1776347440726,-262.560586,7.509e-05,2]
[420614655,1776347440736,-262.560586,7.509e-05,2]
[420614656,1776347440745,-262.560586,7.509e-05,2]
[420614657,1776347440755,-262.560586,7.509e-05,2]
[420614658,1776347440764,-262.560586,7.509e-05,2]
[420614659,1776347440774,-262.560586,7.509e-05,2]
[420614660,1776347440783,-262.560586,7.509e-05,2]
[420614661,1776347440793,-262.560586,7.509e-05,2]
[420614662,1776347440805,-262.560586,7.509e-05,2]
[420614663,1776347440814,-262.560586,7.509e-05,2]
[420614664,1776347440824,-262.560586,7.509e-05,2]
[420614665,1776347440833,-262.56058788,7.509e-05,2]
[420614666,1776347440843,-152.177,7.509e-05,2]
[420614667,1776347440852,-152.0,7.539e-05,7]
[420614668,1776347440862,-500.0,7.583e-05,2]
[420614669,1776347440872,-250.0,7.611e-05,2]
[420614670,1776347440881,-399.48865643,7.685e-05,2]
[420614671,1776347440891,-250.06,7.696e-05,2]
[420614672,1776347440901,-736.416587,7.738e-05,2]
[420614673,1776347440911,-3000.0,7.807e-05,2]
[420614674,1776347440921,-450.92376187,7.807e-05,2]
[420614675,1776347440931,-162.380719,7.807e-05,2]
[420614676,1776347440942,-3000.0,7.807e-05,2]
[420614677,1776347440952,-162.81592015,7.807e-05,2]
[420614678,1776347441173,-170.63278721,7.807e-05,2]
[420614679,1776347441190,-537.6845,7.807e-05,2]
[420614680,1776347441203,-583.76677755,7.807e-05,2]
[420614681,1776347441212,-537.6845,7.807e-05,2]
[420614682,1776347441222,-2150.738,7.807e-05,2]
[420614683,1776347441233,-156.587,7.807e-05,2]
[420614684,1776347441242,-557.5788265,7.862e-05,2]
[420614685,1776347441253,-399.48865643,7.863e-05,2]
[420614686,1776347441262,-151.0,7.864e-05,2]
[420614687,1776347441272,-864.0,7.873e-05,2]
[420614688,1776347441281,-578.20924308,7.917e-05,2]
[420614689,1776347441291,-599.60298507,7.972e-05,2]
[420614690,1776347441301,-823.0,7.985e-05,2]
[420614691,1776347441310,-376.64675812,8e-05,2]
[420614692,1776347441320,-501.9,8e-05,2]
[420614693,1776347441331,-170.0,8e-05,2]
[420614694,1776347441340,-170.0,8e-05,2]
[420614695,1776347441349,-170.0,8e-05,2]
[420614696,1776347441358,-500.0,8.017e-05,2]
[420614697,1776347441368,-2000.0,8.024e-05,2]
[420614698,1776347441378,-621.78829552,8.027e-05,2]
[420614699,1776347441387,-736.416587,8.027e-05,2]
[420614700,1776347441397,-399.48865643,8.041e-05,2]
[420614701,1776347441407,-644.79446246,8.082e-05,2]
[420614702,1776347441417,-843.51608458,8.097e-05,2]
[420614703,1776347441426,-505.64638372,8.131e-05,2]
[420614704,1776347441436,-668.65185757,8.137e-05,2]
[420614705,1776347441446,-693.3919763,8.192e-05,2]
[420614706,1776347441455,-509.26709226,8.193e-05,2]
[420614707,1776347441465,-500.0,8.193e-05,2]
[420614708,1776347441474,-311.42,8.2e-05,2]
[420614709,1776347441484,-467.13,8.2e-05,2]